bitfinex/quotes_BTCUSD_20250206
["timestamp","ask_amount","ask_price","bid_price","bid_amount"]
[1738871661320,0.00068721,96223.0,96222.0,0.31335104]
[1738871661669,0.00068721,96223.0,96222.0,0.28167104]
[1738871661877,0.00068721,96223.0,96222.0,0.29931104]
[1738871662339,0.00068721,96223.0,96222.0,0.14931104]
[1738871663080,0.00068721,96223.0,96222.0,0.13131104]
[1738871663285,0.00068721,96223.0,96222.0,0.29831104]
[1738871663496,0.00068721,96223.0,96222.0,0.4952342]
[1738871663687,0.00068721,96223.0,96222.0,0.5022342]
[1738871664099,0.0798,96239.0,96228.0,0.305879]
[1738871664302,0.0798,96239.0,96228.0,0.46341681]
[1738871664937,0.0798,96239.0,96228.0,1.00141681]
[1738871666104,0.0798,96239.0,96228.0,1.00841681]
[1738871666349,0.0822,96247.0,96228.0,1.00841681]
[1738871666553,0.0822,96247.0,96228.0,1.00141681]
[1738871666727,0.0822,96247.0,96228.0,1.01041681]
[1738871666922,0.0822,96247.0,96228.0,1.00841681]
[1738871667123,0.0822,96247.0,96228.0,1.01741681]
[1738871667304,0.0003067,96229.0,96228.0,1.01041681]
[1738871667506,0.0003067,96229.0,96228.0,1.00141681]
[1738871667839,0.0003067,96229.0,96228.0,1.01741681]
[1738871668048,7e-07,96229.0,96228.0,1.01741681]
[1738871668611,7e-07,96229.0,96228.0,1.00841681]
[1738871668815,7e-07,96229.0,96228.0,1.02963555]
[1738871669878,0.0791,96257.0,96228.0,1.00941681]
[1738871670081,0.00022428,96263.0,96228.0,1.00941681]
[1738871670082,0.00022428,96263.0,96246.0,0.15]
[1738871670254,0.00022428,96263.0,96262.0,0.40832765]
[1738871670460,0.0003631,96263.0,96262.0,0.41696765]
[1738871670659,0.01,96278.0,96277.0,0.1558]
[1738871671006,0.01,96288.0,96277.0,0.10250365]
[1738871671191,0.01,96288.0,96279.0,0.10250365]
[1738871671192,0.01,96282.0,96279.0,0.10250365]
[1738871671344,0.01,96288.0,96279.0,0.10250365]
[1738871671543,0.01,96287.0,96284.0,0.155787]
[1738871671747,0.01,96292.0,96289.0,0.15578]
[1738871671985,0.01,96292.0,96290.0,0.10250365]
[1738871672187,0.01,96292.0,96291.0,0.155777]
[1738871672388,0.02931311,96294.0,96291.0,0.155777]
[1738871672389,0.01487689,96294.0,96293.0,0.155774]
[1738871672565,0.01487689,96294.0,96293.0,0.25827765]
[1738871673199,0.01487689,96294.0,96293.0,0.10250365]
[1738871673389,0.01487689,96294.0,96293.0,0.25827765]
[1738871673755,0.13897689,96294.0,96293.0,0.25827765]
[1738871673955,0.13897689,96294.0,96293.0,0.26727765]
[1738871674183,0.13897689,96294.0,96293.0,0.25827765]
[1738871674388,0.15897689,96294.0,96293.0,0.10250365]
[1738871674560,0.15897689,96294.0,96293.0,0.10950365]
[1738871676433,0.15897689,96294.0,96293.0,0.10250365]
[1738871676601,0.15897689,96294.0,96293.0,0.10850365]
[1738871677011,0.15897689,96294.0,96293.0,0.10250365]
[1738871677211,0.15897689,96294.0,96293.0,0.10550365]
[1738871677612,0.15897689,96294.0,96293.0,0.10250365]
[1738871677944,0.31474889,96294.0,96293.0,0.10250365]
[1738871678151,0.0883,96283.0,96282.0,0.08334071]
[1738871678352,0.0983,96283.0,96282.0,0.18584436]
[1738871678552,0.0983,96283.0,96282.0,0.08334071]
[1738871678745,0.1029,96272.0,96262.0,0.0086]
[1738871678910,0.1029,96272.0,96271.0,0.18584436]
[1738871679304,0.1519,96272.0,96271.0,0.10250365]
[1738871679758,0.1519,96272.0,96271.0,0.25831365]
[1738871679961,0.1519,96272.0,96271.0,0.10250365]
[1738871680360,0.0379,96272.0,96271.0,0.10250365]
[1738871680575,0.0379,96272.0,96271.0,0.26731365]
[1738871680968,0.01,96279.0,96271.0,0.26731365]
[1738871680969,0.01,96280.0,96271.0,0.11150365]
[1738871681194,0.01,96280.0,96274.0,0.155803]
[1738871681402,0.01,96280.0,96275.0,0.155802]
[1738871681634,0.01,96280.0,96275.0,0.10250365]
[1738871682106,0.01,96277.0,96275.0,0.10250365]
[1738871682604,0.01,96277.0,96276.0,0.155802]
[1738871682805,0.01,96277.0,96276.0,0.25830565]
[1738871683371,0.0907,96277.0,96276.0,0.25830565]
[1738871683772,0.1007,96277.0,96276.0,0.11050365]
[1738871686157,0.31313761,96277.0,96276.0,0.008]
[1738871686296,0.3017,96277.0,96276.0,0.008]
[1738871687140,0.0876,96255.0,96254.0,0.08334071]
[1738871687446,0.0976,96255.0,96254.0,0.18584436]
[1738871687647,0.1463,96255.0,96254.0,0.18584436]
[1738871688433,0.1463,96255.0,96254.0,0.10250365]
[1738871688998,0.02,96249.0,96248.0,0.1098]
[1738871689176,0.0976,96249.0,96248.0,0.10993882]
[1738871689597,0.253445,96249.0,96248.0,0.10993882]
[1738871689800,0.0976,96249.0,96248.0,0.00013882]
[1738871690004,0.09889889,96249.0,96248.0,0.00013882]
[1738871690196,0.25474389,96249.0,96248.0,0.00013882]
[1738871690413,0.253445,96249.0,96248.0,0.00013882]
[1738871690724,0.253445,96249.0,96248.0,0.00613882]
[1738871691063,0.253445,96249.0,96248.0,0.00013882]
[1738871691248,0.0976,96249.0,96248.0,0.00013882]
[1738871691449,0.09889889,96249.0,96248.0,0.00013882]
[1738871691774,0.11259431,96249.0,96248.0,0.00013882]
[1738871691974,0.11129542,96249.0,96248.0,0.00013882]
[1738871692508,0.11129542,96249.0,96248.0,0.00513882]
[1738871692712,0.11129542,96249.0,96248.0,0.10764247]
[1738871693089,0.11129542,96249.0,96248.0,0.10264247]
[1738871693292,0.11129542,96249.0,96248.0,0.10286633]
[1738871693500,0.01,96252.0,96251.0,0.155842]
[1738871693704,0.0487,96255.0,96251.0,0.155842]
[1738871693705,0.01,96255.0,96252.0,0.15584]
[1738871693901,0.0906,96260.0,96259.0,0.155829]
[1738871694101,0.0906,96260.0,96259.0,0.25833265]
[1738871694304,0.0806,96260.0,96259.0,0.25833265]
[1738871694577,0.02341987,96266.0,96265.0,0.155819]
[1738871694734,0.01341987,96266.0,96265.0,0.25832265]
[1738871694957,0.01,96266.0,96265.0,0.46608165]
[1738871695157,0.08,96271.0,96265.0,0.46608165]
[1738871695158,0.02,96267.0,96266.0,0.155818]
[1738871695362,0.02,96267.0,96266.0,0.25832165]
[1738871696566,0.01,96267.0,96266.0,0.25832165]
[1738871696772,0.02,96267.0,96266.0,0.26332165]
[1738871696973,0.02,96267.0,96266.0,0.25832165]
[1738871697495,0.02,96267.0,96266.0,0.10950365]
[1738871698396,0.02,96267.0,96266.0,0.26532165]
[1738871698552,0.01,96267.0,96266.0,0.26532165]
[1738871698753,0.02,96267.0,96266.0,0.26532165]
[1738871699178,0.02,96267.0,96266.0,0.10950365]
[1738871702032,0.02,96267.0,96266.0,0.26532165]
[1738871702291,0.02,96267.0,96266.0,0.25832165]
[1738871702532,0.01,96267.0,96266.0,0.25832165]
[1738871702735,0.02,96267.0,96266.0,0.26432165]
[1738871702956,0.02,96267.0,96266.0,0.25832165]
[1738871703171,0.02,96267.0,96266.0,0.26532165]
[1738871703407,0.01,96270.0,96267.0,0.155816]
[1738871703745,0.01,96270.0,96266.0,0.10950365]
[1738871703746,0.01,96272.0,96271.0,0.15581]
[1738871704038,0.01,96272.0,96271.0,0.25831365]
[1738871704547,0.02,96272.0,96271.0,0.25831365]
[1738871705213,0.02376594,96280.0,96271.0,0.10250365]
[1738871705386,0.0487,96295.0,96293.0,0.155774]
[1738871705601,0.01,96297.0,96293.0,0.25827765]
[1738871705903,0.02,96295.0,96293.0,0.25827765]
[1738871706044,0.02091811,96308.0,96293.0,0.25827765]
[1738871706449,0.01,96305.0,96293.0,0.25827765]
[1738871706649,0.01,96301.0,96293.0,0.25827765]
[1738871706880,0.01498349,96294.0,96293.0,0.26527765]
[1738871707847,0.01498349,96294.0,96293.0,0.27379765]
[1738871707848,0.01489157,96294.0,96293.0,0.27379765]
[1738871709354,0.01489157,96294.0,96293.0,0.42379765]
[1738871709756,0.0002,96309.0,96294.0,0.15]
[1738871709955,0.0002,96309.0,96308.0,0.15575]
[1738871710125,0.0002,96309.0,96308.0,0.25825365]
[1738871711711,0.0002,96309.0,96308.0,0.10250365]
[1738871711927,0.0102,96309.0,96308.0,0.10250365]
[1738871712262,0.0102,96309.0,96308.0,0.25825365]
[1738871712734,0.0102,96309.0,96308.0,0.10650365]
[1738871713107,0.0102,96309.0,96308.0,0.10250365]
[1738871713395,0.0102,96309.0,96308.0,0.10850365]
[1738871713600,0.0102,96309.0,96308.0,0.10250365]
[1738871714650,0.01,96292.0,96291.0,0.155777]
[1738871714837,0.01,96292.0,96291.0,0.25841944]
[1738871715701,0.02,96297.0,96291.0,0.10264244]
[1738871715859,0.01,96297.0,96296.0,0.155769]
[1738871716058,0.01,96297.0,96296.0,0.25827265]
[1738871716258,0.0002,96309.0,96308.0,0.15575]
[1738871716461,0.0002,96309.0,96308.0,0.25825365]
[1738871716664,0.0102,96309.0,96308.0,0.25825365]
[1738871717025,0.0002,96309.0,96308.0,0.25825365]
[1738871718815,0.0002,96309.0,96308.0,0.26625365]
[1738871719016,0.0002,96309.0,96308.0,0.25825365]
[1738871719616,0.0002,96309.0,96308.0,0.28085457]
[1738871720249,0.0102,96309.0,96308.0,0.28085457]
[1738871720417,0.0102,96309.0,96308.0,0.12510457]
[1738871721023,0.0102,96309.0,96308.0,0.11150365]
[1738871721630,0.0202,96309.0,96308.0,0.11150365]
[1738871723346,0.0202,96309.0,96308.0,0.009]
[1738871723530,0.14869808,96309.0,96308.0,0.009]
[1738871723864,0.30444608,96309.0,96308.0,0.009]
[1738871724065,0.303148,96309.0,96308.0,0.009]
[1738871724392,0.1474,96309.0,96308.0,0.009]
[1738871724777,0.3044461,96309.0,96308.0,0.009]
[1738871724978,0.303148,96309.0,96291.0,0.0834795]
[1738871725179,0.02,96293.0,96292.0,0.10250365]
[1738871726398,0.02,96293.0,96292.0,0.10950365]
[1738871728138,0.02,96293.0,96292.0,0.10250365]
[1738871728969,0.02,96293.0,96292.0,0.10950365]
[1738871729744,0.175774,96293.0,96292.0,0.007]
[1738871729958,0.258874,96293.0,96292.0,0.007]
[1738871730155,0.1031,96293.0,96292.0,0.007]
[1738871730388,0.30682837,96293.0,96292.0,0.007]
[1738871730536,0.3055301,96293.0,96292.0,0.007]
[1738871730741,0.3530301,96293.0,96292.0,0.007]
[1738871731263,0.165776,96292.0,96291.0,0.00013879]
[1738871731469,0.16707434,96292.0,96291.0,0.00013879]
[1738871731996,0.17707434,96292.0,96291.0,0.00013879]
[1738871732207,0.32707434,96292.0,96291.0,0.00013879]
[1738871732416,0.401176,96292.0,96291.0,0.00013879]
[1738871732754,0.4920321,96292.0,96291.0,0.00513879]
[1738871732950,0.401176,96292.0,96291.0,0.00013879]
[1738871733759,0.257592,96282.0,96281.0,0.08356457]
[1738871733969,0.407592,96282.0,96281.0,0.00022386]
[1738871734997,0.407592,96282.0,96281.0,0.00122386]
[1738871735197,0.453992,96282.0,96281.0,0.00122386]
[1738871735417,0.453992,96282.0,96281.0,0.00022386]
[1738871735620,0.57949565,96282.0,96281.0,0.00122386]
[1738871735854,0.40241,96271.0,96270.0,0.06556457]
[1738871736386,0.2466,96271.0,96270.0,0.06556457]
[1738871736616,0.15,96270.0,96249.0,0.207792]
[1738871736815,0.01,96267.0,96248.0,0.00022386]
[1738871736984,0.01129871,96267.0,96248.0,0.00022386]
[1738871737190,0.31711471,96267.0,96248.0,0.00022386]
[1738871737400,0.41273707,96267.0,96248.0,0.15607086]
[1738871737601,0.315816,96267.0,96248.0,0.00022386]
[1738871737803,0.16,96267.0,96248.0,0.15607086]
[1738871738001,0.17129871,96267.0,96248.0,0.00022386]
[1738871738210,0.16,96267.0,96266.0,0.00122386]
[1738871738615,0.16,96267.0,96266.0,0.00022386]
[1738871738818,0.17,96267.0,96266.0,0.00122386]
[1738871739224,0.17129868,96267.0,96266.0,0.00022386]
[1738871739427,0.37267885,96267.0,96266.0,0.00022386]
[1738871739697,0.37138017,96267.0,96266.0,0.00022386]
[1738871740096,0.38450178,96267.0,96266.0,0.00022386]
[1738871740270,0.33893761,96267.0,96266.0,0.00022386]
[1738871740489,0.35953072,96267.0,96266.0,0.00222386]
[1738871740912,0.35953072,96267.0,96266.0,0.00022386]
[1738871741059,0.35953072,96267.0,96266.0,0.00122386]
[1738871743286,0.50703072,96267.0,96266.0,0.00122386]
[1738871744168,0.40804,96252.0,96248.0,0.00022386]
[1738871744394,0.2522,96252.0,96251.0,0.08334071]
[1738871745099,0.02,96249.0,96248.0,0.00022386]
[1738871745580,0.02,96249.0,96248.0,0.00036268]
[1738871745972,0.02129891,96249.0,96248.0,0.00036268]
[1738871747334,0.02,96249.0,96248.0,0.00336268]
[1738871747517,0.02,96249.0,96248.0,0.00036268]
[1738871748058,0.4756439,96249.0,96248.0,0.001]
[1738871748388,0.02,96231.0,96230.0,0.04]
[1738871748605,0.175874,96231.0,96230.0,0.04]
[1738871749565,0.19687839,96231.0,96230.0,0.04]
[1738871750618,0.19687839,96231.0,96230.0,0.043]
[1738871750954,0.20998012,96231.0,96230.0,0.04]
[1738871751070,0.28838012,96231.0,96230.0,0.043]
[1738871752095,0.33368012,96231.0,96230.0,0.043]
[1738871752332,0.48368012,96231.0,96230.0,0.043]
[1738871752534,0.58618377,96231.0,96230.0,0.043]
[1738871753441,0.58618377,96231.0,96213.0,0.00022407]
[1738871753442,0.02,96214.0,96213.0,0.00022407]
[1738871753740,0.26000137,96214.0,96213.0,0.00022407]
[1738871753977,0.258702,96214.0,96213.0,0.00022407]
[1738871754706,0.258702,96214.0,96213.0,0.00922407]
[1738871755533,0.01,96205.0,96204.0,0.07356478]
[1738871755888,0.01,96205.0,96204.0,0.07402749]
[1738871756094,0.01,96205.0,96204.0,0.00046271]
[1738871756482,0.02,96205.0,96204.0,0.00046271]
[1738871756659,0.02,96205.0,96204.0,0.10296636]
[1738871756861,0.02,96205.0,96204.0,0.25888436]
[1738871757968,0.021,96205.0,96204.0,0.26588436]
[1738871758304,0.011,96205.0,96204.0,0.26588436]
[1738871758486,0.021,96205.0,96204.0,0.26588436]
[1738871759053,0.011,96205.0,96204.0,0.26588436]
[1738871759255,0.001,96205.0,96204.0,0.26588436]
[1738871759705,0.001,96205.0,96204.0,0.41588436]
[1738871759878,0.001,96205.0,96204.0,0.43888436]
[1738871760059,0.01,96223.0,96205.0,0.173]
[1738871760263,0.01,96223.0,96222.0,0.155889]
[1738871760510,0.01,96223.0,96222.0,0.10250365]
[1738871760735,0.02129908,96223.0,96222.0,0.10250365]
[1738871760864,0.01,96205.0,96204.0,0.15638071]
[1738871761091,0.011,96205.0,96204.0,0.26788436]
[1738871761289,0.011,96205.0,96204.0,0.10296636]
[1738871761540,0.011,96205.0,96204.0,0.25888436]
[1738871762928,0.01,96205.0,96204.0,0.25888436]
[1738871763447,0.011,96205.0,96204.0,0.26788436]
[1738871763772,0.011,96205.0,96204.0,0.25888436]
[1738871763923,0.012,96205.0,96204.0,0.26488436]
[1738871764474,0.002,96205.0,96204.0,0.26488436]
[1738871764681,0.01,96209.0,96204.0,0.10296636]
[1738871764795,0.02,96209.0,96208.0,0.155912]
[1738871764994,0.02,96209.0,96208.0,0.10250365]
[1738871765702,0.02,96209.0,96208.0,0.25841565]
[1738871767068,0.02,96209.0,96208.0,0.26441565]
[1738871767881,0.02,96209.0,96208.0,0.25841565]
[1738871768177,0.02,96209.0,96208.0,0.26441565]
[1738871768389,0.02,96209.0,96208.0,0.10850365]
[1738871769788,0.17591,96209.0,96208.0,0.10850365]
[1738871770112,0.175917,96205.0,96204.0,0.00056941]
[1738871770313,0.17721645,96205.0,96204.0,0.00056941]
[1738871770901,0.02,96205.0,96204.0,0.00056941]
[1738871771242,0.17721648,96205.0,96204.0,0.00056941]
[1738871771535,0.17721648,96205.0,96204.0,0.00756941]
[1738871771536,0.22586158,96205.0,96204.0,0.00756941]
[1738871771689,0.175917,96205.0,96204.0,0.00756941]
[1738871771897,0.17721655,96205.0,96204.0,0.00756941]
[1738871772074,0.32721655,96205.0,96204.0,0.00756941]
[1738871772290,0.402317,96205.0,96204.0,0.00756941]
[1738871772493,0.175949,96185.0,96181.0,0.08334071]
[1738871772693,0.25924871,96185.0,96184.0,0.00036284]
[1738871772900,0.257949,96185.0,96184.0,0.00036284]
[1738871773097,0.1013768,96185.0,96184.0,0.00036284]
[1738871773306,0.13230618,96185.0,96184.0,0.00036284]
[1738871773721,0.10267659,96185.0,96184.0,0.00036284]
[1738871773924,0.25962559,96185.0,96184.0,0.00736284]
[1738871774120,0.4083258,96185.0,96184.0,0.00736284]
[1738871774904,0.4555258,96185.0,96184.0,0.00736284]
[1738871775533,0.48923594,96185.0,96184.0,0.00736284]
[1738871775811,0.33328694,96185.0,96184.0,0.00736284]
[1738871776036,0.33228694,96185.0,96184.0,0.00036284]
[1738871776219,0.36741322,96185.0,96184.0,0.00036284]
[1738871777435,0.52336222,96185.0,96184.0,0.00036284]
[1738871777827,0.36741322,96185.0,96184.0,0.00036284]
[1738871777997,0.28508694,96185.0,96184.0,0.00036284]
[1738871778811,0.44103594,96185.0,96184.0,0.00036284]
[1738871779008,0.28508694,96185.0,96184.0,0.00036284]
[1738871779791,0.44103594,96185.0,96184.0,0.00036284]
[1738871779979,0.52872473,96185.0,96184.0,0.00036284]
[1738871780158,0.52672473,96185.0,96184.0,0.00036284]
[1738871780560,0.52772473,96185.0,96184.0,0.00036284]
[1738871780723,0.52672473,96185.0,96184.0,0.00036284]
[1738871781948,0.63922838,96185.0,96184.0,0.00036284]
[1738871782149,0.64022838,96185.0,96184.0,0.00036284]
[1738871782394,0.63922838,96185.0,96184.0,0.00036284]
[1738871783404,0.64022838,96185.0,96184.0,0.00036284]
[1738871783604,0.63922838,96185.0,96184.0,0.00036284]
[1738871783985,0.64022838,96185.0,96184.0,0.00036284]
[1738871785035,0.3353408,96176.0,96175.0,0.00022386]
[1738871785201,0.4370498,96170.0,96160.0,0.08334071]
[1738871785401,0.53955345,96170.0,96160.0,0.08334071]
[1738871785604,0.3253648,96161.0,96160.0,0.06456457]
[1738871786010,0.1753698,96158.0,96154.0,0.00022386]
[1738871787202,0.20991498,96158.0,96154.0,0.00022386]
[1738871787612,0.1783698,96158.0,96154.0,0.00022386]
[1738871787810,0.17966992,96158.0,96154.0,0.00022386]
[1738871788481,0.19736003,96158.0,96154.0,0.00022386]
[1738871788673,0.20036003,96158.0,96154.0,0.00022386]
[1738871789052,0.2101365,96158.0,96154.0,0.00022386]
[1738871789260,0.29324483,96158.0,96154.0,0.00022386]
[1738871789583,0.20883638,96158.0,96154.0,0.00022386]
[1738871789825,0.21083638,96158.0,96154.0,0.00022386]
[1738871790273,0.20883638,96158.0,96154.0,0.00022386]
[1738871791046,0.35883638,96158.0,96154.0,0.00022386]
[1738871791236,0.1753748,96155.0,96154.0,0.00022386]
[1738871791473,0.25804462,96155.0,96154.0,0.00013896]
[1738871791647,0.25674435,96155.0,96154.0,0.00013896]
[1738871791992,0.532248,96155.0,96154.0,0.00013896]
[1738871792187,0.614248,96155.0,96154.0,0.00013896]
[1738871792391,0.1753988,96140.0,96139.0,0.08334071]
[1738871792770,0.1753988,96140.0,96139.0,0.08324071]
[1738871792980,0.01,96134.0,96130.0,0.0035]
[1738871793289,0.166032,96134.0,96130.0,0.0035]
[1738871794191,0.16733242,96134.0,96130.0,0.0035]
[1738871794864,0.01130042,96134.0,96130.0,0.0035]
[1738871795035,0.02067722,96134.0,96133.0,0.10272772]
[1738871795238,0.0093768,96134.0,96133.0,0.25876072]
[1738871795468,0.0193768,96134.0,96133.0,0.26176072]
[1738871795672,0.0193768,96134.0,96133.0,0.10572772]
[1738871795990,0.0193768,96134.0,96133.0,0.10272772]
[1738871796253,0.0093768,96134.0,96133.0,0.10272772]
[1738871796408,0.01,96138.0,96133.0,0.26376072]
[1738871796610,0.0093768,96134.0,96133.0,0.16125707]
[1738871796808,0.0093768,96134.0,96133.0,0.10772772]
[1738871797442,0.0193768,96149.0,96148.0,0.156009]
[1738871797651,0.0193768,96149.0,96148.0,0.25851265]
[1738871797990,0.0093768,96166.0,96165.0,0.155981]
[1738871798110,0.13108816,96180.0,96148.0,0.10250365]
[1738871798111,0.0001386,96173.0,96163.0,0.155985]
[1738871798316,0.0193768,96164.0,96163.0,0.10250365]
[1738871800389,0.0093768,96164.0,96163.0,0.10250365]
[1738871800585,0.0093768,96164.0,96163.0,0.25848865]
[1738871800814,0.0193768,96164.0,96163.0,0.10250365]
[1738871801477,0.0093768,96164.0,96163.0,0.10450365]
[1738871801677,0.0093768,96164.0,96163.0,0.10250365]
[1738871801891,0.0193768,96164.0,96163.0,0.10250365]
[1738871802088,0.0093768,96164.0,96163.0,0.10450365]
[1738871802239,0.0093768,96164.0,96163.0,0.10250365]
[1738871802584,0.0093768,96164.0,96163.0,0.10450365]
[1738871802728,0.0093768,96164.0,96163.0,0.26048865]
[1738871803483,0.0093768,96164.0,96163.0,0.25948865]
[1738871804001,0.0193768,96164.0,96163.0,0.25948865]
[1738871804325,0.0193768,96164.0,96163.0,0.25748865]
[1738871804785,0.0093768,96164.0,96163.0,0.10450365]
[1738871804985,0.0093768,96164.0,96163.0,0.25748865]
[1738871805343,0.0093768,96164.0,96163.0,0.26048865]
[1738871805550,0.0093768,96164.0,96163.0,0.25748865]
[1738871805770,0.0093768,96164.0,96163.0,0.33378865]
[1738871805970,0.0093768,96164.0,96163.0,0.33778865]
[1738871807705,0.0093768,96164.0,96163.0,0.26148865]
[1738871808551,0.01,96171.0,96163.0,0.26148865]
[1738871808552,0.01,96171.0,96167.0,0.207969]
[1738871808801,0.0095154,96173.0,96172.0,0.15597]
[1738871808802,0.0195154,96173.0,96172.0,0.15597]
[1738871809013,0.0195154,96173.0,96172.0,0.25847365]
[1738871810875,9.10910535,96160.0,96159.0,0.230988]
[1738871811008,9.10910535,96160.0,96159.0,0.395499]
[1738871812045,9.11010535,96160.0,96159.0,0.50400265]
[1738871812467,9.11010535,96160.0,96159.0,0.49548265]
[1738871812617,9.11948215,96160.0,96159.0,0.47248265]
[1738871813639,9.11848215,96160.0,96159.0,0.46648265]
[1738871813854,9.11848215,96160.0,96159.0,0.47248265]
[1738871814055,9.11948215,96160.0,96159.0,0.47248265]
[1738871814255,9.11948215,96160.0,96159.0,0.46648265]
[1738871814454,9.12070665,96160.0,96159.0,0.47348265]
[1738871815600,9.12070665,96160.0,96159.0,0.48200265]
[1738871817242,9.12070665,96160.0,96159.0,0.10950365]
[1738871817437,9.3892003,96160.0,96159.0,0.007]
[1738871818871,0.01,96157.0,96145.0,0.156013]
[1738871819047,0.00130002,96156.0,96146.0,0.10250365]
[1738871819489,0.00130002,96156.0,96148.0,0.156009]
[1738871819818,0.00130002,96156.0,96149.0,0.10250365]
[1738871820307,0.10380367,96156.0,96149.0,0.10250365]
[1738871820482,0.0193768,96150.0,96149.0,0.10250365]
[1738871820678,0.1753828,96150.0,96149.0,0.10250365]
[1738871821122,0.1753838,96149.0,96148.0,0.002]
[1738871821335,0.1753988,96140.0,96139.0,0.0001069]
[1738871821525,0.17669908,96140.0,96139.0,0.0001069]
[1738871821725,0.02067708,96140.0,96139.0,0.0001069]
[1738871821900,0.0193768,96140.0,96139.0,0.0001069]
[1738871822922,0.1753988,96140.0,96139.0,0.0001069]
[1738871823126,0.0193768,96140.0,96139.0,0.0001069]
[1738871823326,0.02067711,96140.0,96139.0,0.0001069]
[1738871823530,0.0193768,96140.0,96139.0,0.25863455]
[1738871823759,0.0193768,96140.0,96139.0,0.0001069]
[1738871824278,0.0193768,96140.0,96139.0,0.0011069]
[1738871824476,0.0193768,96140.0,96139.0,0.0001069]
[1738871824851,0.0193768,96140.0,96139.0,0.1561309]
[1738871825163,0.0193768,96140.0,96139.0,0.25863455]
[1738871825357,0.0193768,96140.0,96139.0,0.26163455]
[1738871825786,0.01,96146.0,96139.0,0.10261055]
[1738871825961,0.0093768,96147.0,96146.0,0.156012]
[1738871826165,0.0093768,96147.0,96146.0,0.25851565]
[1738871827367,0.0093768,96147.0,96146.0,0.10250365]
[1738871827774,0.0193768,96147.0,96146.0,0.25851565]
[1738871827979,0.0093768,96147.0,96146.0,0.25851565]
[1738871828220,9.10946842,96160.0,96147.0,0.208014]
[1738871828598,9.11884522,96160.0,96159.0,0.155991]
[1738871828835,9.11884522,96160.0,96159.0,0.25849465]
[1738871829354,9.11884522,96160.0,96159.0,0.25749465]
[1738871829550,7.15353683,96140.0,96138.0,0.15]
[1738871829756,7.15353683,96140.0,96139.0,0.27944307]
[1738871831136,7.15453683,96140.0,96139.0,0.28844307]
[1738871831536,7.15453683,96140.0,96139.0,0.31144307]
[1738871831805,7.15453683,96140.0,96139.0,0.28844307]
[1738871832226,7.15453683,96140.0,96139.0,0.31144307]
[1738871833946,7.15453683,96140.0,96139.0,0.46144307]
[1738871836298,7.15453683,96140.0,96139.0,0.27389907]
[1738871836867,7.15453683,96140.0,96139.0,0.42992307]
[1738871837692,7.15453683,96140.0,96139.0,0.45292307]
[1738871840040,7.15453683,96140.0,96139.0,0.43844307]
[1738871845522,6.29901976,96135.0,96133.0,0.00874407]
[1738871845756,6.29901976,96135.0,96134.0,0.25853565]
[1738871846858,6.30001976,96135.0,96134.0,0.25853565]
[1738871847094,6.30001976,96135.0,96134.0,0.28153565]
[1738871847449,6.30101976,96135.0,96134.0,0.29053565]
[1738871849296,6.30101976,96135.0,96134.0,0.44053565]
[1738871849917,6.30101976,96135.0,96134.0,0.44064255]
[1738871853045,6.30101976,96135.0,96134.0,0.44916255]
[1738871854065,6.26464976,96135.0,96134.0,0.44916255]
[1738871855672,6.23364977,96135.0,96134.0,0.48158303]
[1738871856871,6.14540364,96135.0,96134.0,0.48158303]
[1738871857078,6.14540364,96135.0,96134.0,0.52358303]
[1738871857079,6.11926434,96135.0,96134.0,0.52358303]
[1738871857501,6.08176434,96135.0,96134.0,0.52358303]
[1738871857844,6.03816841,96135.0,96134.0,0.52358303]
[1738871858042,5.96195075,96135.0,96134.0,0.52420623]
[1738871858243,5.93267375,96135.0,96134.0,0.52420623]
[1738871858647,5.91397774,96135.0,96134.0,0.52420623]
[1738871859453,5.86576461,96135.0,96134.0,0.52420623]
[1738871859856,5.72235176,96135.0,96134.0,0.52420623]
[1738871860034,5.68519632,96135.0,96134.0,1.38630623]
[1738871860240,5.643597,96135.0,96134.0,1.38630623]
[1738871860718,5.641597,96135.0,96134.0,1.37730623]
[1738871860922,5.642597,96135.0,96134.0,1.38630623]
[1738871861343,5.641597,96135.0,96134.0,1.33468303]
[1738871861543,5.642597,96135.0,96134.0,1.34368303]
[1738871862923,5.642597,96135.0,96134.0,0.45858303]
[1738871863538,5.642597,96135.0,96134.0,0.48158303]
[1738871865646,4.7308376,96130.0,96129.0,0.1105432]
[1738871865791,4.7308376,96130.0,96129.0,0.25403163]
[1738871866050,4.5835926,96130.0,96129.0,0.4255164]
[1738871866248,4.55637486,96130.0,96129.0,0.9635164]
[1738871866451,4.53943169,96130.0,96129.0,0.9635164]
[1738871866736,4.44973839,96130.0,96129.0,0.9635164]
[1738871866862,4.26389095,96130.0,96129.0,0.9635164]
[1738871867074,3.45321595,96130.0,96129.0,1.0055164]
[1738871867271,3.28410229,96130.0,96129.0,1.0623164]
[1738871867623,3.21792725,96130.0,96129.0,1.0623164]
[1738871867770,3.15551225,96130.0,96129.0,1.2353164]
[1738871868108,3.13969979,96130.0,96129.0,1.2353164]
[1738871868979,3.10871135,96130.0,96129.0,1.2353164]
[1738871869188,2.17820444,96130.0,96129.0,1.2353164]
[1738871869387,0.57586913,96130.0,96129.0,1.26825716]
[1738871869602,0.01,96196.0,96183.0,0.155952]
[1738871869805,0.01,96196.0,96184.0,0.10250365]
[1738871870007,0.01,96196.0,96184.0,0.13493569]
[1738871870008,0.00036312,96185.0,96184.0,0.13493569]
[1738871870655,0.00036312,96185.0,96184.0,0.10250365]
[1738871870854,0.00136312,96185.0,96184.0,0.10250365]
[1738871871101,0.00036312,96185.0,96184.0,0.10250365]
[1738871871495,0.00036312,96185.0,96184.0,0.10450365]
[1738871871496,0.01073992,96185.0,96184.0,0.10450365]
[1738871872905,0.00973992,96185.0,96184.0,0.10250365]
[1738871873233,0.00973992,96185.0,96184.0,0.10350365]
[1738871873387,0.00973992,96185.0,96184.0,0.10250365]
[1738871873792,0.00973992,96185.0,96184.0,0.10550365]
[1738871874551,0.00036312,96185.0,96184.0,0.10550365]
[1738871875417,0.00032312,96185.0,96184.0,0.10550365]
[1738871876031,0.00032312,96185.0,96184.0,0.10250365]
[1738871876275,0.00132312,96185.0,96184.0,0.26745465]
[1738871877331,0.00132312,96185.0,96184.0,0.29045465]
[1738871879436,0.00132312,96185.0,96184.0,0.26745465]
[1738871879616,0.00132312,96185.0,96184.0,0.29979659]
[1738871880044,0.00132312,96185.0,96184.0,0.15236559]
[1738871880222,0.00132312,96185.0,96184.0,0.14384559]